bitfinex/quotes_BTCUSD_20260117
["timestamp","ask_amount","ask_price","bid_price","bid_amount"]
[1768669449448,0.02258318,95269.0,95268.0,0.0104967]
[1768669450003,0.02258318,95269.0,95267.0,0.01041287]
[1768669450207,0.02258318,95268.0,95267.0,0.06289694]
[1768669450951,0.02258318,95268.0,95267.0,0.01041287]
[1768669457249,0.02258318,95268.0,95266.0,0.01049692]
[1768669457454,0.02258318,95268.0,95264.0,0.01049714]
[1768669457455,0.02258318,95267.0,95264.0,0.01049714]
[1768669457659,0.02258318,95266.0,95264.0,0.01049714]
[1768669457850,0.02258318,95265.0,95264.0,0.01049714]
[1768669458034,0.02823019,95272.0,95266.0,0.01049692]
[1768669458242,0.02258469,95271.0,95264.0,0.06298279]
[1768669458463,0.01049604,95274.0,95266.0,0.01049692]
[1768669458635,0.01049604,95274.0,95267.0,0.01049681]
[1768669458828,0.02823019,95275.0,95267.0,0.01049681]
[1768669459228,0.03872612,95275.0,95268.0,0.0104967]
[1768669459629,0.01049604,95274.0,95266.0,0.01049692]
[1768669460047,0.03872612,95275.0,95267.0,0.01049681]
[1768669461093,0.01049604,95274.0,95266.0,0.01049692]
[1768669461304,0.03872612,95275.0,95266.0,0.01049692]
[1768669461889,0.03872612,95275.0,95268.0,0.0104967]
[1768669462114,0.03872612,95275.0,95267.0,0.01049681]
[1768669462279,0.01049604,95274.0,95266.0,0.01049692]
[1768669462914,0.01049604,95274.0,95267.0,0.01049681]
[1768669463527,0.03872612,95275.0,95267.0,0.01049681]
[1768669465357,0.01049604,95274.0,95266.0,0.01049692]
[1768669465580,0.01049604,95274.0,95267.0,0.01049681]
[1768669466004,0.03872612,95275.0,95267.0,0.01049681]
[1768669466176,0.02823019,95275.0,95268.0,0.0104967]
[1768669466379,0.03872612,95275.0,95267.0,0.01049681]
[1768669466581,0.01049604,95274.0,95266.0,0.01049692]
[1768669466780,0.01049604,95274.0,95267.0,0.01049681]
[1768669467008,0.03872612,95275.0,95267.0,0.01049681]
[1768669467429,0.03872612,95275.0,95268.0,0.0104967]
[1768669467631,0.03872612,95275.0,95267.0,0.01049681]
[1768669467857,0.01049604,95274.0,95267.0,0.01049681]
[1768669468057,0.01049615,95273.0,95264.0,0.06289885]
[1768669468277,0.02823019,95272.0,95266.0,0.01049692]
[1768669468477,0.02823019,95272.0,95261.0,0.57790659]
[1768669468478,0.01049648,95270.0,95261.0,0.56740912]
[1768669468790,0.72082338,95283.0,95261.0,0.56740912]
[1768669468791,0.02823019,95268.0,95263.0,0.01049725]
[1768669468990,0.02823019,95268.0,95264.0,0.01049714]
[1768669469131,0.02823019,95269.0,95264.0,0.01049714]
[1768669469339,0.02823019,95270.0,95265.0,0.01049703]
[1768669469543,0.02823019,95270.0,95266.0,0.01049692]
[1768669470169,0.02258877,95269.0,95265.0,0.01049703]
[1768669470377,0.02258877,95268.0,95265.0,0.01049703]
[1768669470579,0.02258877,95267.0,95264.0,0.01049714]
[1768669470887,0.02258877,95266.0,95263.0,0.01049725]
[1768669471106,0.02258877,95265.0,95258.0,0.1272]
[1768669471318,0.02258877,95264.0,95263.0,0.01049725]
[1768669471541,0.02823291,95268.0,95263.0,0.06298352]
[1768669471718,0.02823291,95268.0,95264.0,0.01049714]
[1768669472266,0.02823291,95269.0,95264.0,0.01049714]
[1768669472678,0.01049626,95272.0,95264.0,0.01049714]
[1768669472679,0.02823291,95268.0,95264.0,0.01049714]
[1768669473558,0.02258657,95267.0,95265.0,0.01041309]
[1768669473757,0.02258657,95266.0,95265.0,0.01041309]
[1768669474077,0.02258657,95266.0,95264.0,1e-08]
[1768669474304,0.02823291,95269.0,95266.0,0.01049692]
[1768669474480,0.02258575,95268.0,95266.0,0.01049692]
[1768669474711,0.02258575,95267.0,95266.0,0.01049692]
[1768669474939,0.02258575,95267.0,95264.0,0.01049715]
[1768669475114,0.02258575,95266.0,95264.0,0.57859698]
[1768669475261,0.02258575,95265.0,95264.0,0.6310827]
[1768669476313,0.02258575,95265.0,95264.0,0.63103742]
[1768669477569,0.02258575,95265.0,95264.0,0.5785517]
[1768669478136,0.02258575,95265.0,95264.0,0.63103742]
[1768669480578,0.02258575,95265.0,95264.0,0.5785517]
[1768669481173,0.02258575,95265.0,95264.0,0.49352296]
[1768669481569,0.02823291,95270.0,95264.0,0.49352296]
[1768669481570,0.02823291,95270.0,95266.0,0.01049692]
[1768669481791,0.02823291,95271.0,95264.0,0.5040201]
[1768669482110,0.02823291,95270.0,95266.0,0.01049692]
[1768669482887,0.02823291,95270.0,95265.0,0.01049703]
[1768669483808,0.05081775,95269.0,95265.0,0.01049703]
[1768669484000,0.02258484,95268.0,95265.0,0.01049703]
[1768669484221,0.02258484,95267.0,95265.0,0.01049703]
[1768669484430,0.02258484,95266.0,95265.0,0.01049703]
[1768669486257,0.02258484,95266.0,95264.0,0.5040201]
[1768669486443,0.02258484,95265.0,95264.0,0.55650566]
[1768669486850,0.02258484,95265.0,95264.0,0.53391814]
[1768669487352,0.02258484,95265.0,95264.0,0.48143258]
[1768669488084,0.02258484,95265.0,95264.0,0.5339183]
[1768669488858,0.02258484,95265.0,95263.0,0.01049725]
[1768669489062,0.02258484,95264.0,95263.0,0.01049725]
[1768669489267,0.02258484,95264.0,95262.0,0.57859719]
[1768669489433,0.02258484,95263.0,95262.0,0.63108359]
[1768669490083,0.02258484,95263.0,95262.0,0.57859719]
[1768669490283,0.02258484,95263.0,95262.0,0.63108401]
[1768669492160,0.02823291,95266.0,95262.0,0.60903797]
[1768669492380,0.01049626,95272.0,95262.0,0.60903797]
[1768669492381,0.02823291,95270.0,95263.0,0.05248627]
[1768669492606,0.02823291,95270.0,95267.0,0.01049681]
[1768669492814,0.02823291,95271.0,95266.0,0.01049692]
[1768669493033,0.02823291,95271.0,95266.0,0.01045164]
[1768669493257,0.02823291,95271.0,95267.0,0.01049681]
[1768669493486,0.02823291,95271.0,95268.0,0.0104967]
[1768669493701,0.02823291,95270.0,95268.0,0.0104967]
[1768669495285,0.02823291,95269.0,95268.0,0.0104967]
[1768669495932,0.02823291,95269.0,95267.0,0.00587772]
[1768669496149,0.02823291,95269.0,95266.0,0.03118321]
[1768669496360,0.02823291,95271.0,95264.0,0.05248527]
[1768669496593,0.02823291,95271.0,95268.0,0.0104967]
[1768669497016,0.02823291,95271.0,95267.0,0.01049681]
[1768669497263,0.02823291,95271.0,95268.0,0.0104967]
[1768669497475,0.02823291,95271.0,95267.0,0.01049681]
[1768669497686,0.02823291,95271.0,95268.0,0.0104967]
[1768669498312,0.02823291,95270.0,95268.0,0.0104967]
[1768669499537,0.02823291,95270.0,95267.0,0.06298085]
[1768669499538,0.02823291,95270.0,95267.0,0.01049681]
[1768669500420,0.02823291,95270.0,95266.0,0.01049692]
[1768669500633,0.02823291,95270.0,95267.0,0.01049681]
[1768669500847,0.02823291,95270.0,95265.0,0.01049703]
[1768669501052,0.03872939,95270.0,95265.0,0.01049703]
[1768669501530,0.03872939,95270.0,95264.0,0.01049714]
[1768669501753,0.01049659,95269.0,95255.0,0.1272]
[1768669501961,0.01049681,95267.0,95260.0,0.01049758]
[1768669502192,0.03872983,95266.0,95255.0,0.17969051]
[1768669502408,0.09121457,95266.0,95256.0,0.05249013]
[1768669502612,0.01049703,95265.0,95258.0,0.0104978]
[1768669502817,0.01049703,95265.0,95259.0,0.01049769]
[1768669502818,0.01049714,95264.0,95259.0,0.01049769]
[1768669503196,0.01049703,95265.0,95260.0,0.01049758]
[1768669504083,0.01049714,95264.0,95259.0,0.01049769]
[1768669504284,0.03872983,95266.0,95260.0,0.01049758]
[1768669504503,0.01049703,95265.0,95260.0,0.01049758]
[1768669504709,0.0226004,95264.0,95261.0,0.01049747]
[1768669504911,0.0226004,95263.0,95260.0,0.01049758]
[1768669505123,0.0226004,95262.0,95260.0,0.01049758]
[1768669505314,0.0226004,95261.0,95260.0,0.01049758]
[1768669505699,0.0226004,95261.0,95259.0,0.01049769]
[1768669505908,0.0226004,95260.0,95259.0,0.01049769]
[1768669510656,0.02823291,95263.0,95258.0,0.06298682]
[1768669510807,0.03873005,95264.0,95258.0,0.06298682]
[1768669511181,0.02823291,95264.0,95259.0,0.01049769]
[1768669512262,0.02823291,95264.0,95260.0,0.01049758]
[1768669514674,0.05082929,95263.0,95260.0,0.01049758]
[1768669514833,0.05082929,95263.0,95259.0,0.06298615]
[1768669514834,0.02259638,95262.0,95259.0,0.01049769]
[1768669515028,0.02259638,95261.0,95259.0,0.01049769]
[1768669515232,0.02259638,95260.0,95259.0,0.01049769]
[1768669516215,0.02259638,95260.0,95259.0,0.01041374]
[1768669516774,0.02259638,95260.0,95257.0,0.01049791]
[1768669516945,0.02259638,95259.0,95257.0,0.01049791]
[1768669517145,0.02259638,95258.0,95257.0,0.01049791]
[1768669517733,0.02259638,95258.0,95257.0,0.06298749]
[1768669520258,0.02823291,95266.0,95256.0,0.56515308]
[1768669520460,0.1272,95272.0,95260.0,0.56515264]
[1768669520461,0.03872994,95265.0,95260.0,0.56515264]
[1768669520666,0.03872994,95265.0,95261.0,0.01049747]
[1768669520866,0.03872994,95265.0,95260.0,0.01049758]
[1768669521271,0.03872994,95265.0,95261.0,0.01049747]
[1768669521272,0.02823291,95265.0,95261.0,0.01049747]
[1768669521705,0.03872994,95265.0,95261.0,0.01049747]
[1768669522017,0.02823291,95265.0,95261.0,0.01049747]
[1768669522544,0.02823291,95265.0,95262.0,0.01049736]
[1768669523050,0.02823291,95265.0,95262.0,0.06298401]
[1768669523600,0.02823291,95265.0,95262.0,0.05918218]
[1768669523801,0.02823291,95265.0,95262.0,0.0512193]
[1768669524007,0.02823291,95265.0,95262.0,0.06171666]
[1768669525026,0.02823291,95265.0,95263.0,0.05248625]
[1768669525669,0.02823291,95265.0,95262.0,0.06298411]
[1768669526551,0.02823291,95263.0,95262.0,0.06298411]
[1768669526721,0.01049681,95267.0,95263.0,0.01049725]
[1768669528296,0.02824511,95264.0,95262.0,0.02099493]
[1768669528447,0.01049681,95267.0,95261.0,0.01049747]
[1768669528448,0.02824511,95265.0,95261.0,0.00889743]
[1768669528786,0.02824511,95266.0,95262.0,0.01441017]
[1768669529030,0.02824511,95266.0,95261.0,0.00889743]
[1768669529213,0.03874192,95267.0,95263.0,0.01049725]
[1768669529416,0.03874192,95267.0,95261.0,0.00889743]
[1768669529756,0.03874192,95267.0,95262.0,0.01049736]
[1768669530759,0.03874192,95267.0,95261.0,0.06298474]
[1768669531161,0.01049681,95267.0,95261.0,0.06298474]
[1768669532090,0.01049681,95267.0,95262.0,0.05248676]
[1768669532302,0.02259943,95266.0,95263.0,0.01049725]
[1768669532510,0.02259943,95265.0,95263.0,0.01049725]
[1768669532713,0.02259943,95264.0,95263.0,0.01049725]
[1768669532931,0.02259943,95264.0,95263.0,0.06298352]
[1768669533889,0.02259943,95264.0,95263.0,0.01049725]
[1768669535545,0.0104967,95268.0,95262.0,0.01575649]
[1768669537215,0.01049681,95267.0,95263.0,0.01049725]
[1768669540605,0.00659766,95262.0,95261.0,0.06298481]
[1768669544612,0.0387417,95269.0,95265.0,0.01049703]
[1768669544819,0.0387417,95269.0,95263.0,0.05248576]
[1768669545439,0.0387417,95269.0,95264.0,0.05248568]
[1768669545591,0.02824511,95266.0,95264.0,0.05248568]
[1768669546377,0.02824511,95266.0,95265.0,0.01049703]
[1768669547375,0.02824511,95266.0,95262.0,0.01049736]
[1768669547376,0.02824511,95266.0,95263.0,0.01049725]
[1768669547584,0.02260251,95265.0,95263.0,0.01049725]
[1768669547784,0.02260251,95264.0,95263.0,0.01049725]
[1768669549348,0.01049692,95266.0,95265.0,0.05248517]
[1768669549349,0.02824511,95266.0,95265.0,0.05248517]
[1768669549888,0.02824511,95267.0,95265.0,0.05248517]
[1768669550299,0.02824511,95266.0,95264.0,0.06298286]
[1768669550523,0.02824511,95266.0,95265.0,0.05248517]
[1768669550934,0.01049615,95273.0,95268.0,1e-08]
[1768669551134,0.01049626,95272.0,95267.0,0.03581976]
[1768669551492,0.1272,95271.0,95267.0,0.03581976]
[1768669552115,0.1272,95271.0,95266.0,0.05248456]
[1768669552330,0.01049648,95270.0,95266.0,0.01030271]
[1768669552558,0.13769637,95271.0,95266.0,0.01030271]
[1768669552782,0.13769637,95271.0,95267.0,0.01049681]
[1768669553027,0.00047275,95278.0,95275.0,0.01049593]
[1768669553241,0.0001604,95290.0,95280.0,0.0092934]
[1768669553242,0.01049494,95284.0,95280.0,0.0092934]
[1768669553460,5.454e-05,95284.0,95279.0,0.01049549]
[1768669553671,5.454e-05,95284.0,95282.0,0.05239751]
[1768669553883,5.454e-05,95284.0,95283.0,0.05247525]
[1768669554104,5.454e-05,95284.0,95281.0,0.01049527]
[1768669554319,5.454e-05,95284.0,95281.0,0.59227991]
[1768669554526,5.454e-05,95284.0,95282.0,0.05247571]
[1768669554759,5.454e-05,95284.0,95281.0,0.01049527]
[1768669556040,5.454e-05,95284.0,95280.0,0.01049538]
[1768669556723,5.454e-05,95284.0,95281.0,0.01049527]
[1768669556958,5.454e-05,95284.0,95280.0,0.01049538]
[1768669557195,0.01049505,95283.0,95278.0,0.0104956]
[1768669557423,0.01049505,95283.0,95279.0,0.01049549]
[1768669558737,0.01049505,95283.0,95280.0,0.01049538]
[1768669559349,0.01049505,95283.0,95279.0,0.01049549]
[1768669560645,0.01049527,95281.0,95278.0,0.52930836]
[1768669560864,0.05247746,95279.0,95278.0,0.52930836]
[1768669561115,0.01049582,95276.0,95272.0,0.01049626]
[1768669561755,0.01049604,95274.0,95270.0,0.52930836]
[1768669561970,0.01049593,95275.0,95270.0,0.53980484]
[1768669562184,0.01049593,95275.0,95271.0,0.01049637]
[1768669562426,0.01049582,95276.0,95272.0,0.01049626]
[1768669562843,0.01049604,95274.0,95270.0,0.53980484]
[1768669563107,0.01049604,95274.0,95271.0,0.01049637]
[1768669563304,0.06297496,95276.0,95271.0,0.01049637]
[1768669564163,0.01049593,95275.0,95271.0,0.01049637]
[1768669566400,0.01049582,95276.0,95271.0,0.01049637]
[1768669567246,0.01049582,95276.0,95272.0,0.01049626]
[1768669569015,0.01049582,95276.0,95271.0,0.01049637]
[1768669569445,0.06297496,95276.0,95272.0,0.01049626]
[1768669569648,0.01049593,95275.0,95272.0,0.01049626]
[1768669570188,0.01049582,95276.0,95272.0,0.01049626]
[1768669571904,0.0104956,95278.0,95273.0,0.01049615]
[1768669572038,0.0104956,95278.0,95274.0,0.01049604]
[1768669573669,0.06297307,95279.0,95274.0,0.01049604]
[1768669573670,0.01049549,95279.0,95275.0,0.01049593]
[1768669574284,0.01049549,95279.0,95275.0,0.06297559]
[1768669574547,0.01049527,95281.0,95276.0,0.01049582]
[1768669575192,0.01049538,95280.0,95276.0,0.01049582]
[1768669575730,0.01049549,95279.0,95275.0,0.01049593]
[1768669575945,0.06297301,95279.0,95275.0,0.01049593]
[1768669576141,0.01049549,95279.0,95275.0,0.01049593]
[1768669577378,0.0104956,95278.0,95275.0,0.01049593]
[1768669579456,0.01049538,95280.0,95276.0,0.01049582]
[1768669580216,0.01049527,95281.0,95277.0,0.01049571]
[1768669580420,0.06302443,95284.0,95277.0,0.05247826]
[1768669580421,0.06297031,95283.0,95277.0,0.05247826]
[1768669580626,0.06297031,95283.0,95277.0,0.05247846]
[1768669580627,0.01049516,95282.0,95277.0,0.05247846]
[1768669580832,0.01049516,95282.0,95277.0,0.04656225]
[1768669582305,0.01049516,95282.0,95278.0,0.0104956]
[1768669582929,5.454e-05,95284.0,95279.0,0.01049549]
[1768669583136,0.01054948,95284.0,95279.0,0.01049549]
[1768669583347,0.01049505,95283.0,95278.0,0.0629732]
[1768669583773,0.01049505,95283.0,95279.0,0.05247743]
[1768669583980,0.01049505,95283.0,95279.0,0.01483062]
[1768669584400,0.01049505,95283.0,95280.0,0.01049538]
[1768669584613,0.01049505,95283.0,95279.0,0.02532611]
[1768669585018,5.454e-05,95284.0,95280.0,0.01049538]
[1768669585496,0.34414578,95290.0,95284.0,0.01049494]
[1768669585712,0.1272,95287.0,95285.0,0.05247375]
[1768669586167,0.1272,95287.0,95284.0,0.01049494]
[1768669586386,0.01054396,95289.0,95285.0,0.06296898]
[1768669586592,0.1272,95287.0,95285.0,0.06296898]
[1768669587398,0.1272,95287.0,95285.0,0.05247404]
[1768669588050,0.1272,95287.0,95286.0,0.0524736]
[1768669589337,0.1272,95287.0,95286.0,0.03537544]
[1768669589997,0.1272,95287.0,95286.0,0.03518133]
[1768669591535,0.1272,95287.0,95286.0,0.02732935]
[1768669591965,0.1272,95287.0,95284.0,0.01049494]
[1768669592386,0.1272,95287.0,95286.0,0.0524736]
[1768669593057,0.01049328,95299.0,95291.0,0.54000133]
[1768669593275,0.01049306,95301.0,95295.0,0.01049372]
[1768669593489,0.01049328,95299.0,95295.0,0.01049372]
[1768669593738,0.01049328,95299.0,95294.0,0.01049384]
[1768669593948,0.01049317,95300.0,95295.0,0.01049372]
[1768669594153,0.01049317,95300.0,95296.0,0.01049361]
[1768669595373,0.01049306,95301.0,95297.0,0.0104935]
[1768669596586,0.01049306,95301.0,95297.0,0.01042388]
[1768669596821,0.01049273,95304.0,95298.0,0.01049339]
[1768669597173,0.01049284,95303.0,95298.0,0.01049339]
[1768669597363,0.01049284,95303.0,95299.0,0.01049328]
[1768669598213,0.01049284,95303.0,95298.0,0.01049339]
[1768669598850,0.01049284,95303.0,95299.0,0.01049328]
[1768669599080,0.01049284,95303.0,95299.0,0.0091767]
[1768669599450,0.01049295,95302.0,95297.0,0.06296102]
[1768669599653,0.01049284,95303.0,95299.0,0.01049328]
[1768669601287,0.06295716,95303.0,95298.0,0.01049339]
[1768669601488,0.01049284,95303.0,95298.0,0.01049339]
[1768669601713,0.01049295,95302.0,95298.0,0.01049339]
[1768669602073,0.01049295,95302.0,95299.0,0.01049328]
[1768669603073,0.01049284,95303.0,95299.0,0.01049328]
[1768669603488,0.01049295,95302.0,95297.0,0.0104935]
[1768669603717,0.01049295,95302.0,95299.0,0.01049328]
[1768669603928,0.01049284,95303.0,95299.0,0.01049328]
[1768669604951,0.01049284,95303.0,95296.0,0.01049361]
[1768669605377,0.01049306,95301.0,95298.0,0.01049339]
[1768669605583,0.01049284,95303.0,95298.0,0.01049339]
[1768669605962,0.01049295,95302.0,95298.0,0.01049339]
[1768669606828,0.01049284,95303.0,95299.0,0.01049328]
[1768669607027,0.01049295,95302.0,95297.0,0.0104935]
[1768669607442,0.01049295,95302.0,95298.0,0.01049339]
[1768669607856,0.01049284,95303.0,95299.0,0.01049328]
[1768669608121,0.06295602,95305.0,95301.0,0.01049306]
[1768669608122,0.01049262,95305.0,95301.0,0.01049306]
[1768669608340,0.01049262,95305.0,95302.0,0.01049295]
[1768669608545,0.01049273,95304.0,95300.0,0.01049317]
[1768669609982,0.01049273,95304.0,95300.0,0.06295903]
[1768669610191,0.01049273,95304.0,95301.0,0.01049306]
[1768669610836,0.0104924,95307.0,95302.0,0.01049295]
[1768669611044,0.02819579,95305.0,95302.0,0.01049295]
[1768669613437,0.02819579,95305.0,95301.0,0.01049306]
[1768669613438,0.01049262,95305.0,95301.0,0.01049306]
[1768669613849,0.06295561,95306.0,95302.0,0.01049295]
[1768669613850,0.01049251,95306.0,95302.0,0.01049295]
[1768669614054,0.02820279,95303.0,95301.0,0.01049306]
[1768669615205,0.02820279,95302.0,95301.0,0.01049306]
[1768669617267,0.01049273,95304.0,95301.0,0.01049306]
[1768669617476,0.02821528,95302.0,95301.0,0.01049306]
[1768669617711,0.01049262,95305.0,95301.0,0.01049306]
[1768669617918,0.02821529,95302.0,95301.0,0.01049306]
[1768669618130,0.01105258,95309.0,95302.0,0.01049295]
[1768669618337,0.01105258,95309.0,95303.0,0.05246424]
[1768669618714,0.06351386,95309.0,95304.0,0.01049273]
[1768669618918,0.01049229,95308.0,95304.0,0.01049273]
[1768669620931,0.01049229,95308.0,95303.0,0.06295704]
[1768669621141,0.01105258,95309.0,95303.0,0.01049284]
[1768669621349,0.06351356,95309.0,95303.0,0.06295666]
[1768669621561,0.06295384,95308.0,95304.0,0.01049273]
[1768669621774,0.01049229,95308.0,95304.0,0.01049273]
[1768669622072,0.01105258,95309.0,95305.0,0.01049262]
[1768669622295,0.01049207,95310.0,95305.0,0.01049262]
[1768669622518,0.01049207,95310.0,95306.0,0.01049251]
[1768669622746,0.01089185,95312.0,95307.0,0.0104924]
[1768669622973,0.0004,95312.0,95309.0,0.01049218]
[1768669623651,0.0004,95312.0,95308.0,0.01049229]
[1768669623845,0.0004,95312.0,95309.0,0.01049218]
[1768669624063,0.01089185,95312.0,95308.0,0.01049229]
[1768669624291,0.01049196,95311.0,95307.0,0.0104924]
[1768669624516,0.01089185,95312.0,95308.0,0.01049229]
[1768669624736,0.01049196,95311.0,95308.0,0.01049229]
[1768669625236,0.0004,95312.0,95309.0,0.01049218]
[1768669625926,0.0005604,95319.0,95316.0,0.01049141]
[1768669626113,0.00070212,95319.0,95316.0,0.06286411]
[1768669626281,0.00070212,95319.0,95316.0,0.01040751]
[1768669626499,0.00050815,95317.0,95316.0,0.01040751]
[1768669626900,0.00050815,95317.0,95316.0,0.0628646]
[1768669627268,0.00050815,95317.0,95316.0,0.01040751]
[1768669627670,0.00050815,95317.0,95316.0,0.0628646]
[1768669627876,0.00050815,95317.0,95316.0,0.06278634]
[1768669627877,0.00041757,95317.0,95316.0,0.06278634]
[1768669628092,0.00032699,95317.0,95316.0,0.06278634]
[1768669628504,0.00070212,95319.0,95318.0,0.05245598]
[1768669628928,8.225e-05,95324.0,95321.0,0.01049086]
[1768669629136,8.225e-05,95324.0,95323.0,0.05205193]
[1768669629760,8.225e-05,95324.0,95322.0,0.0524537]
[1768669630124,8.225e-05,95324.0,95323.0,0.05245323]
[1768669630795,8.225e-05,95324.0,95321.0,0.00917458]
[1768669632430,0.01065049,95328.0,95323.0,0.01049064]
[1768669632638,0.01065049,95328.0,95324.0,0.01049053]
[1768669632846,0.0104902,95327.0,95323.0,0.01049064]
[1768669633060,0.01049031,95326.0,95322.0,0.01049075]
[1768669633275,0.01049064,95323.0,95319.0,0.01049108]
[1768669633483,0.06294469,95322.0,95318.0,0.01049119]
[1768669633693,0.01049075,95322.0,95319.0,0.01049108]
[1768669633897,0.05245274,95324.0,95319.0,0.01049108]
[1768669634107,0.05245274,95324.0,95318.0,0.06294717]
[1768669634108,0.01049086,95321.0,95317.0,0.0104913]
[1768669634332,0.0001604,95328.0,95317.0,0.0104913]
[1768669634562,0.20996395,95328.0,95317.0,0.0104913]
[1768669634766,0.05245379,95322.0,95317.0,0.0104913]
[1768669635252,0.01049086,95321.0,95317.0,0.0104913]
[1768669635659,0.20996395,95328.0,95317.0,0.0104913]
[1768669636218,0.01049086,95321.0,95318.0,0.01049119]
[1768669636417,0.05245337,95323.0,95318.0,0.01049119]
[1768669637227,0.01049075,95322.0,95318.0,0.01049119]
[1768669637435,0.01049064,95323.0,95319.0,0.01049108]
[1768669638400,0.01049075,95322.0,95319.0,0.01049108]
[1768669638941,0.01049064,95323.0,95319.0,0.01049108]
[1768669639177,0.01049053,95324.0,95320.0,0.01049097]
[1768669639400,0.01049053,95324.0,95319.0,0.58818478]
[1768669639401,0.01049064,95323.0,95319.0,0.53572955]
[1768669639620,0.01049064,95323.0,95320.0,0.01049097]
[1768669639830,0.01049053,95324.0,95320.0,0.01049097]
[1768669641035,0.01049031,95326.0,95321.0,0.01049086]
[1768669641263,0.01049042,95325.0,95321.0,0.01049086]
[1768669642534,0.01049042,95325.0,95321.0,0.01042124]
[1768669642735,0.01049042,95325.0,95320.0,0.01049097]
[1768669642736,0.01049053,95324.0,95320.0,0.01049097]
[1768669644129,0.01049053,95324.0,95319.0,0.01049108]
[1768669644130,0.01049075,95322.0,95319.0,0.01049108]
[1768669644298,0.01049075,95322.0,95318.0,0.01049119]
[1768669645633,0.01049075,95322.0,95317.0,0.0104913]
[1768669645634,0.01049086,95321.0,95317.0,0.0104913]
[1768669645832,0.01049086,95321.0,95318.0,0.01049119]
[1768669646036,0.01049075,95322.0,95318.0,0.01049119]
[1768669647251,0.01049086,95321.0,95318.0,0.01049119]
[1768669647659,0.01049075,95322.0,95318.0,0.01049119]
[1768669648122,0.01049064,95323.0,95318.0,0.01049119]
[1768669649667,0.01049075,95322.0,95318.0,0.01049119]
[1768669654937,0.01049086,95321.0,95317.0,0.0104913]
[1768669655148,0.01049075,95322.0,95318.0,0.01049119]
[1768669658003,0.01049075,95322.0,95318.0,0.06294716]
[1768669658621,0.01040015,95322.0,95318.0,0.06294716]
[1768669659035,0.01040015,95322.0,95318.0,0.01049119]
[1768669663165,0.01049086,95321.0,95317.0,0.0104913]
[1768669663392,0.01049097,95320.0,95316.0,0.12716]
[1768669663596,0.01040015,95322.0,95316.0,0.13765141]
[1768669664141,0.06285408,95322.0,95316.0,0.13765141]
[1768669664370,0.01049097,95320.0,95317.0,0.0104913]
[1768669664602,0.06285408,95322.0,95317.0,0.0104913]
[1768669665264,0.01049097,95320.0,95317.0,0.0104913]
[1768669665699,0.06285408,95322.0,95317.0,0.0104913]
[1768669665921,0.06285408,95322.0,95316.0,0.13765141]
[1768669665922,0.01049097,95320.0,95316.0,0.13765141]
[1768669666398,0.01040015,95322.0,95317.0,0.0104913]
[1768669666851,0.06285444,95322.0,95317.0,0.0104913]
[1768669667080,0.01049108,95319.0,95316.0,0.12716]
[1768669667330,0.01049108,95319.0,95316.0,0.13765141]
[1768669667549,0.05245447,95321.0,95316.0,0.13765141]
[1768669668257,0.01049108,95319.0,95316.0,0.13765141]
[1768669668545,0.01049075,95322.0,95317.0,0.0104913]
[1768669668793,0.01049075,95322.0,95318.0,0.01049119]
[1768669668999,0.01049075,95322.0,95318.0,0.01044589]
[1768669669418,0.01049086,95321.0,95317.0,0.0104913]
[1768669669604,0.01049075,95322.0,95317.0,0.0104913]
[1768669669605,0.01049075,95322.0,95317.0,0.06294757]
[1768669669812,0.01049075,95322.0,95318.0,0.01049119]
[1768669670996,0.01049086,95321.0,95317.0,0.0104913]
[1768669672993,0.01049108,95319.0,95316.0,0.12716]
[1768669673184,0.01049086,95321.0,95316.0,0.12716]
[1768669673395,0.01049097,95320.0,95316.0,0.13765141]
[1768669674581,0.01049097,95320.0,95316.0,0.19010847]
[1768669674802,0.01049086,95321.0,95317.0,0.0104913]
[1768669678108,0.0283252,95320.0,95317.0,0.06294782]
[1768669678312,0.0283252,95320.0,95317.0,0.0104913]
[1768669680593,0.0283252,95320.0,95317.0,0.06294782]
[1768669680786,0.0283252,95320.0,95317.0,0.0104913]
[1768669682274,0.0283252,95320.0,95317.0,0.06294742]
[1768669682481,0.0283252,95320.0,95319.0,0.05245543]
[1768669683385,0.0283252,95320.0,95317.0,0.0104913]
[1768669683386,0.04816436,95324.0,95320.0,0.01049097]
[1768669684467,0.01049064,95323.0,95319.0,0.01049108]
[1768669687517,0.06294395,95323.0,95317.0,0.0104913]
[1768669687756,0.02832464,95319.0,95317.0,0.0104913]
[1768669688167,0.01049086,95321.0,95317.0,0.0104913]
[1768669688380,0.06294395,95323.0,95318.0,0.01049119]
[1768669688381,0.01049075,95322.0,95318.0,0.01049119]
[1768669689247,0.01049075,95322.0,95316.0,0.13765141]
[1768669689463,0.05245456,95321.0,95316.0,0.13765141]
[1768669689887,0.01049075,95322.0,95317.0,0.0104913]
[1768669690327,0.01049097,95320.0,95316.0,0.13765141]
[1768669691012,0.01049086,95321.0,95317.0,0.0104913]
[1768669691242,0.01049097,95320.0,95317.0,0.0104913]
[1768669691493,0.01049086,95321.0,95317.0,0.0104913]
[1768669692300,0.01049075,95322.0,95318.0,0.01049119]
[1768669692506,0.01049075,95322.0,95318.0,0.0104459]
[1768669694703,0.01049042,95325.0,95320.0,0.01049097]
[1768669695889,0.01049042,95325.0,95320.0,0.06294583]
[1768669696319,0.01049042,95325.0,95321.0,0.01049086]
[1768669696958,0.01049053,95324.0,95321.0,0.01049086]
[1768669697162,0.01049064,95323.0,95319.0,0.01049108]
[1768669697458,0.01049053,95324.0,95320.0,0.01049097]
[1768669698103,0.04816436,95324.0,95320.0,0.01049097]
[1768669698897,0.01049064,95323.0,95318.0,0.0104459]
[1768669699104,0.01049064,95323.0,95319.0,0.01049108]
[1768669700647,0.01049075,95322.0,95318.0,0.0104459]
[1768669702191,0.01049075,95322.0,95319.0,0.01049108]
[1768669703226,0.01049064,95323.0,95320.0,0.01049097]
[1768669704429,0.01049064,95323.0,95320.0,0.01044568]
[1768669704766,0.04816436,95324.0,95320.0,0.01044568]
[1768669704978,0.04816436,95324.0,95321.0,0.01049086]
[1768669705396,0.04816436,95324.0,95320.0,0.01044568]
[1768669706613,0.01049064,95323.0,95319.0,0.01049108]
[1768669706844,0.01049064,95323.0,95317.0,0.0104913]
[1768669706845,0.01049097,95320.0,95317.0,0.0104913]
[1768669707046,0.01049097,95320.0,95316.0,0.12716]
[1768669707258,0.06294586,95320.0,95316.0,0.12716]
[1768669707665,0.01049097,95320.0,95316.0,0.12716]
[1768669708118,0.01049097,95320.0,95316.0,0.13765141]
[1768669708360,0.06294617,95320.0,95316.0,0.13765141]
[1768669709822,0.01049108,95319.0,95316.0,0.12716]
[1768669710167,0.01049097,95320.0,95316.0,0.12716]
[1768669710773,0.01049097,95320.0,95316.0,0.13765141]
[1768669711746,0.06294586,95320.0,95316.0,0.13765141]
[1768669712157,0.01049097,95320.0,95316.0,0.13765141]
[1768669712353,0.01049086,95321.0,95317.0,0.0104913]
[1768669713017,0.01049086,95321.0,95318.0,0.01049119]
[1768669713996,0.01049075,95322.0,95318.0,0.01049119]
[1768669714795,0.01049075,95322.0,95318.0,0.0104459]
[1768669715221,0.01049086,95321.0,95317.0,0.0104913]
[1768669715453,0.01049086,95321.0,95318.0,0.01049119]
[1768669716011,0.01049075,95322.0,95319.0,0.01049108]